bitfinex/quotes_SOLUSD_20251207
["timestamp","ask_amount","ask_price","bid_price","bid_amount"]
[1765102337606,10.48238137,132.1,132.07,8.26160301]
[1765102345330,18.55104568,132.08,132.04,8.2831484]
[1765102345519,2.24218168,132.07,132.04,8.2831484]
[1765102345725,2.96218168,132.07,132.04,8.2831484]
[1765102347640,10.5339527,132.07,132.04,8.2831484]
[1765102348118,2.24218168,132.06,132.04,7.5731484]
[1765102348325,2.24218168,132.06,132.05,0.71]
[1765102348835,10.5339527,132.07,132.05,0.71]
[1765102349035,18.8539527,132.07,132.05,0.71]
[1765102349437,18.8539527,132.07,132.04,8.2831484]
[1765102352446,2.96218168,132.06,132.03,16.6037932]
[1765102352945,2.96218168,132.06,132.04,0.71]
[1765102353848,2.24218168,132.06,132.04,0.71]
[1765102354247,2.96218168,132.06,132.04,0.71]
[1765102354747,2.24218168,132.06,132.04,0.71]
[1765102355652,8.32,132.07,132.04,8.28315165]
[1765102356136,16.308864,132.08,132.05,0.71]
[1765102356326,17.028864,132.08,132.05,0.71]
[1765102357252,19.27104568,132.08,132.05,0.71]
[1765102357551,19.27104568,132.08,132.05,8.2828272]
[1765102357937,40.44767569,132.08,132.05,8.2828272]
[1765102360524,47.2988474,132.08,132.03,18.93444833]
[1765102360725,2.96218168,132.07,132.04,0.71]
[1765102360950,25.70582293,132.07,132.04,0.71]
[1765102361458,2.24218168,132.06,132.04,0.71]
[1765102367966,2.96218168,132.06,132.04,0.71]
[1765102369842,2.96218168,132.06,132.03,8.28353173]
[1765102370865,2.96218168,132.06,132.03,0.67]
[1765102371058,2.96218168,132.06,132.02,7.5746099]
[1765102371369,2.24218168,132.06,132.04,0.67]
[1765102371570,10.50396976,132.07,132.04,0.67]
[1765102373169,2.24218168,132.06,132.04,0.67]
[1765102378071,31.00542933,132.07,132.04,29.41908906]
[1765102378072,22.74364125,132.07,132.04,29.41908906]
[1765102378270,0.69,132.1,132.05,2.24218168]
[1765102378575,2.24218168,132.09,132.05,0.67]
[1765102378756,2.24218168,132.09,132.06,0.67]
[1765102378945,2.93218168,132.09,132.06,0.67]
[1765102379374,10.50285331,132.09,132.06,0.67]
[1765102380679,2.24218168,132.07,132.04,0.67]
[1765102380879,2.24218168,132.06,132.04,0.67]
[1765102381964,10.50397101,132.07,132.04,0.67]
[1765102384382,11.76708861,132.07,132.04,0.67]
[1765102385352,3.50529928,132.06,132.04,0.67]
[1765102386175,11.74708861,132.07,132.04,8.24344644]
[1765102389790,11.74708861,132.07,132.03,7.5740362]
[1765102390079,11.74708861,132.07,132.03,8.2840362]
[1765102390258,11.74708861,132.07,132.04,0.71]
[1765102393579,3.50529928,132.09,132.04,8.28295932]
[1765102393790,7.57073788,132.09,132.05,8.32]
[1765102394082,7.57073788,132.09,132.05,9.03]
[1765102394262,8.24073788,132.09,132.06,8.28229782]
[1765102394889,0.67,132.09,132.06,8.28229782]
[1765102395765,11.74596692,132.09,132.06,0.71]
[1765102396279,4.17529928,132.08,132.05,15.89264632]
[1765102396462,4.17529928,132.08,132.05,8.32]
[1765102396463,3.50529928,132.07,132.05,8.32]
[1765102396779,4.17529928,132.07,132.04,7.57329971]
[1765102396965,22.44150867,132.09,132.05,8.28271336]
[1765102397171,108.47529928,132.1,132.05,8.28271336]
[1765102397376,108.47529928,132.1,132.06,0.71]
[1765102398886,108.47529928,132.1,132.06,8.28180667]
[1765102399187,108.47529928,132.1,132.07,0.71]
[1765102399597,107.80529928,132.1,132.07,0.71]
[1765102400690,107.80529928,132.1,132.07,8.28134992]
[1765102401572,107.80529928,132.1,132.08,0.68]
[1765102401870,3.50529928,132.1,132.08,0.68]
[1765102404296,4.19529928,132.1,132.08,0.68]
[1765102406096,4.19529928,132.1,132.07,7.57134992]
[1765102406290,4.19529928,132.1,132.07,8.25134992]
[1765102406487,3.50529928,132.09,132.06,15.89207033]
[1765102406692,3.50529928,132.09,132.07,0.68]
[1765102417509,3.50529928,132.09,132.07,8.25172317]
[1765102417711,11.76549491,132.1,132.08,0.68]
[1765102418007,11.07549491,132.1,132.08,0.68]
[1765102418702,11.76549491,132.1,132.08,0.68]
[1765102420313,18.93222264,132.11,132.08,8.25116753]
[1765102420518,11.07473075,132.12,132.08,8.25116753]
[1765102420802,11.76473075,132.12,132.09,0.68]
[1765102424480,3.50529928,132.13,132.09,16.57040696]
[1765102424905,3.50529928,132.13,132.1,0.68]
[1765102425404,4.19529928,132.13,132.1,8.24958986]
[1765102425779,4.19529928,132.13,132.11,0.68]
[1765102428410,3.50529928,132.13,132.11,0.68]
[1765102428912,4.19529928,132.13,132.11,0.68]
[1765102429406,4.19529928,132.12,132.09,16.57036845]
[1765102429610,4.19529928,132.12,132.09,15.89036845]
[1765102429611,3.50529928,132.11,132.09,15.89036845]
[1765102429910,3.50529928,132.11,132.1,0.68]
[1765102431111,3.50529928,132.12,132.1,0.68]
[1765102433013,4.17529928,132.12,132.1,0.68]
[1765102435597,11.74423015,132.12,132.09,8.26036845]
[1765102435919,11.74423015,132.12,132.1,0.69]
[1765102436120,11.74423015,132.12,132.09,8.26036845]
[1765102436323,11.74423015,132.12,132.09,7.57036845]
[1765102436624,11.74423015,132.12,132.1,0.69]
[1765102437621,4.17529928,132.12,132.1,0.69]
[1765102438321,3.50529928,132.12,132.1,0.69]
[1765102439337,8.24855908,132.13,132.1,0.69]
[1765102439509,3.50529928,132.12,132.1,0.69]
[1765102441634,8.24855908,132.13,132.1,0.69]
[1765102441936,3.50529928,132.12,132.1,0.69]
[1765102443056,3.50529928,132.12,132.1,8.25987195]
[1765102443614,3.50529928,132.12,132.1,7.56987195]
[1765102443823,3.50529928,132.12,132.1,8.25987195]
[1765102446433,2.24151678,132.12,132.1,8.25987195]
[1765102447232,2.24151678,132.12,132.1,7.56987195]
[1765102447439,2.24151678,132.12,132.11,0.69]
[1765102447632,22.73157795,132.15,132.11,0.69]
[1765102447929,2.24151678,132.15,132.11,0.69]
[1765102448524,2.24151678,132.15,132.12,7.56887677]
[1765102448926,8.24665456,132.16,132.13,0.69]
[1765102449124,10.48817134,132.16,132.13,0.69]
[1765102449542,2.24151678,132.15,132.13,0.69]
[1765102451639,2.24151678,132.15,132.13,8.25829472]
[1765102453840,2.92151678,132.14,132.1,9.01]
[1765102454017,2.24151678,132.13,132.1,8.32]
[1765102454341,2.24151678,132.13,132.11,0.69]
[1765102454729,2.24151678,132.13,132.11,8.25934298]
[1765102455223,2.92151678,132.13,132.11,8.25934298]
[1765102455744,0.68,132.13,132.11,8.25934298]
[1765102455930,2.92151678,132.13,132.11,0.69]
[1765102456131,2.92151678,132.13,132.1,16.57977462]
[1765102458137,2.92151678,132.13,132.11,0.69]
[1765102458743,9.80944989,132.14,132.11,0.69]
[1765102458937,10.48944989,132.14,132.11,0.69]
[1765102459843,10.48944989,132.14,132.11,8.25943854]
[1765102460138,10.48944989,132.14,132.12,0.69]
[1765102460344,2.24151678,132.13,132.11,0.69]
[1765102461944,10.52944989,132.14,132.11,0.69]
[1765102465524,0.72,132.16,132.11,8.25921441]
[1765102465850,0.72,132.15,132.11,8.25921441]
[1765102466048,0.72,132.15,132.12,0.71]
[1765102466244,2.96151678,132.15,132.11,8.27921441]
[1765102466541,2.24151678,132.14,132.11,8.27921441]
[1765102466740,2.96151678,132.14,132.11,8.27921441]
[1765102466928,0.72,132.13,132.11,8.27921441]
[1765102467342,0.72,132.13,132.09,21.16726102]
[1765102467343,0.72,132.13,132.1,7.56986103]
[1765102467542,0.72,132.13,132.1,8.27986103]
[1765102467743,0.72,132.13,132.1,7.56986103]
[1765102468129,0.72,132.13,132.1,8.27986103]
[1765102470647,10.52990643,132.13,132.1,0.71]
[1765102471148,12.77224797,132.13,132.1,8.28001195]
[1765102471345,10.53073119,132.13,132.1,8.28001195]
[1765102471652,12.77224797,132.13,132.1,8.28001195]
[1765102471854,10.53073119,132.13,132.1,8.28001195]
[1765102472557,9.81073119,132.13,132.1,7.57001195]
[1765102472739,2.96151678,132.14,132.11,0.71]
[1765102473052,25.69309473,132.14,132.11,8.2794372]
[1765102474037,32.54084393,132.14,132.1,7.56995781]
[1765102474353,2.96151678,132.13,132.09,0.71]
[1765102474556,2.96151678,132.13,132.09,8.28054733]
[1765102475067,22.7350233,132.12,132.1,0.71]
[1765102478236,10.53013893,132.13,132.1,0.71]
[1765102478459,120.608864,132.15,132.1,8.27983629]
[1765102478767,17.028864,132.15,132.11,2.24151678]
[1765102478929,17.028864,132.15,132.11,2.95151678]
[1765102479128,39.75871966,132.15,132.12,0.71]
[1765102479529,22.72985566,132.15,132.12,8.27874789]
[1765102479755,0.72,132.16,132.12,8.27874789]
[1765102480063,23.44813364,132.16,132.13,0.71]
[1765102481741,18.12761086,132.17,132.13,8.2782197]
[1765102481943,18.84761086,132.17,132.13,8.2782197]
[1765102482159,26.41635875,132.17,132.14,0.71]
[1765102483956,2.24151678,132.16,132.14,0.71]
[1765102485463,24.17484197,132.17,132.14,0.71]
[1765102485665,2.24151678,132.16,132.14,0.71]
[1765102490955,2.24151678,132.16,132.14,8.27763524]
[1765102492169,26.41635875,132.17,132.14,8.27763524]
[1765102492374,15.88874789,132.17,132.15,0.71]
[1765102492545,2.24151678,132.17,132.15,0.71]
[1765102494475,2.96151678,132.17,132.15,0.71]
[1765102497700,2.24151678,132.17,132.15,0.71]
[1765102500895,2.96151678,132.17,132.15,0.71]
[1765102501283,8.2860498,132.17,132.15,0.71]
[1765102501483,2.96151678,132.17,132.15,0.71]
[1765102501903,47.41925098,132.18,132.15,0.71]
[1765102502204,2.24151678,132.17,132.15,0.71]
[1765102503193,47.41925098,132.18,132.15,0.71]
[1765102503390,2.24151678,132.17,132.15,0.71]
[1765102508420,3.49977656,132.17,132.15,0.71]
[1765102510606,34.61016354,132.18,132.15,0.71]
[1765102510806,11.88547317,132.18,132.15,0.71]
[1765102511004,19.45293334,132.18,132.15,0.71]
[1765102513815,7.66746017,132.18,132.15,8.27684528]
[1765102514195,3.59977656,132.18,132.16,0.7]
[1765102514730,3.49977656,132.17,132.15,0.7]
[1765102515516,34.61016479,132.18,132.15,0.7]
[1765102517217,11.88547442,132.18,132.15,0.7]
[1765102518231,34.61016479,132.18,132.15,0.7]
[1765102520832,4.16977656,132.17,132.13,16.53817005]
[1765102521123,4.16977656,132.17,132.14,0.67]
[1765102521330,3.49977656,132.17,132.14,0.67]
[1765102523614,34.56188629,132.18,132.14,8.23762572]
[1765102523814,11.83547442,132.18,132.14,8.23762572]
[1765102524022,3.49977656,132.16,132.13,7.56810814]
[1765102524218,0.67,132.17,132.14,0.67]
[1765102524219,3.49977656,132.15,132.14,0.67]
[1765102524420,3.49977656,132.16,132.14,0.67]
[1765102524625,11.79977656,132.16,132.14,0.67]
[1765102524822,20.03643987,132.16,132.11,8.3]
[1765102525027,4.16977656,132.15,132.12,8.23864369]
[1765102525433,4.16977656,132.15,132.13,0.67]
[1765102525740,3.49977656,132.15,132.13,0.67]
[1765102526416,3.49977656,132.15,132.12,8.23864369]
[1765102526417,4.16977656,132.15,132.12,8.23864369]
[1765102526725,4.16977656,132.14,132.11,7.56941268]
[1765102526932,4.16977656,132.14,132.11,8.23941268]
[1765102530019,0.67,132.14,132.11,8.23941268]
[1765102532849,8.23782963,132.14,132.11,0.67]
[1765102534252,11.73760619,132.14,132.11,0.67]
[1765102534950,4.16977656,132.13,132.08,7.5706892]
[1765102535146,3.49977656,132.12,132.09,0.67]
[1765102535344,4.16977656,132.12,132.09,0.67]
[1765102535521,0.67,132.12,132.09,0.67]
[1765102535718,0.67,132.12,132.09,8.24047032]
[1765102535923,0.67,132.12,132.1,0.67]
[1765102536528,0.67,132.12,132.09,8.24047032]
[1765102536853,0.67,132.12,132.09,7.57047032]
[1765102537054,0.67,132.12,132.09,8.24047032]
[1765102537430,4.16977656,132.12,132.09,7.57047032]
[1765102537630,4.16977656,132.12,132.1,0.67]
[1765102539437,4.16977656,132.12,132.09,8.24047032]
[1765102540136,4.16977656,132.12,132.1,0.67]
[1765102541747,4.16977656,132.12,132.09,8.24047032]
[1765102543564,36.34657864,132.14,132.1,0.67]
[1765102543762,44.64657864,132.14,132.1,8.23967924]
[1765102544256,36.34657864,132.14,132.11,0.67]
[1765102545471,16.308864,132.14,132.11,8.23937324]
[1765102545654,11.73661201,132.16,132.11,16.55937324]
[1765102545862,11.73661201,132.16,132.12,0.67]
[1765102546540,3.49977656,132.15,132.12,0.67]
[1765102547050,3.49977656,132.15,132.12,8.23867269]
[1765102547254,3.49977656,132.15,132.13,0.67]
[1765102547552,11.73661201,132.16,132.13,0.67]
[1765102547857,3.59977656,132.18,132.13,0.67]
[1765102548059,3.59977656,132.18,132.13,4.16977656]
[1765102548670,3.59977656,132.18,132.14,0.67]
[1765102549168,3.59977656,132.18,132.14,8.23717013]
[1765102549966,3.59977656,132.18,132.15,0.67]
[1765102550642,7.56601346,132.17,132.1,30.74409265]
[1765102550842,3.49977656,132.16,132.11,12.53977656]
[1765102551263,3.49977656,132.15,132.12,8.28872627]
[1765102551656,3.49977656,132.15,132.13,0.72]
[1765102552159,11.76644071,132.16,132.13,0.72]
[1765102552668,20.08644071,132.16,132.13,0.72]
[1765102557445,16.58666415,132.16,132.13,0.72]
[1765102557645,11.76644071,132.16,132.13,0.72]
[1765102560688,3.49977656,132.14,132.12,0.68]
[1765102561250,11.77644071,132.15,132.12,0.68]
[1765102561565,8.27666415,132.15,132.12,8.24884383]
[1765102561763,4.20977656,132.15,132.12,8.24884383]
[1765102562080,11.77700436,132.15,132.12,8.24884383]
[1765102563980,4.20977656,132.14,132.11,8.32]
[1765102564272,4.20977656,132.14,132.11,9.0]
[1765102564762,4.20977656,132.14,132.11,16.56930452]
[1765102564958,4.20977656,132.14,132.12,0.68]
[1765102565676,0.71,132.14,132.12,0.68]
[1765102565862,34.22386921,132.15,132.12,8.24886039]
[1765102566049,11.79977656,132.15,132.12,8.24886039]
[1765102566256,9.01,132.15,132.12,8.24886039]
[1765102567379,8.3,132.15,132.13,0.68]
[1765102568385,8.3,132.15,132.12,7.56886039]
[1765102568579,10.54040942,132.15,132.13,0.68]
[1765102568773,11.25040942,132.15,132.12,7.56886039]
[1765102569154,9.01,132.15,132.12,7.56886039]
[1765102569356,11.25040942,132.15,132.12,8.24886039]
[1765102569558,18.81758753,132.15,132.12,0.68]
[1765102569853,2.95040942,132.14,132.11,8.32]
[1765102570059,2.95040942,132.14,132.1,7.56979359]
[1765102570255,2.95040942,132.13,132.1,8.24979359]
[1765102572592,0.71,132.12,132.1,7.56979359]
[1765102574297,2.24040942,132.11,132.08,0.68]
[1765102574663,2.95040942,132.11,132.08,0.68]
[1765102574972,2.95040942,132.1,132.07,16.57134238]
[1765102575284,2.95040942,132.11,132.08,0.68]
[1765102575461,2.95040942,132.11,132.07,16.57134238]
[1765102575658,0.71,132.1,132.07,16.57134238]
[1765102576884,10.52051095,132.1,132.07,9.0]
[1765102577494,0.71,132.09,132.05,0.68]
[1765102577673,0.71,132.09,132.05,8.25283521]
[1765102577674,2.24040942,132.08,132.05,8.25283521]
[1765102577877,24.12382363,132.09,132.05,8.25283521]
[1765102578196,2.95040942,132.09,132.05,7.57283521]
[1765102578397,2.95040942,132.09,132.06,0.68]
[1765102578802,10.52127221,132.09,132.06,0.68]
[1765102579098,0.71,132.08,132.06,0.68]
[1765102579493,2.95040942,132.08,132.04,0.68]
[1765102579691,2.95040942,132.08,132.04,8.25343159]
[1765102579899,0.71,132.07,132.04,8.25343159]
[1765102581081,2.95040942,132.07,132.04,8.25343159]
[1765102581308,10.5221558,132.07,132.04,0.68]
[1765102581476,0.71,132.06,132.03,16.61385825]
[1765102581679,0.71,132.06,132.03,15.89385825]
[1765102581887,9.8121558,132.07,132.04,0.72]
[1765102582206,10.5221558,132.07,132.04,0.72]
[1765102582386,2.95040942,132.07,132.04,0.72]
[1765102583384,10.52226354,132.07,132.04,0.72]
[1765102584107,9.81226354,132.07,132.04,0.72]
[1765102584405,10.52226354,132.07,132.04,0.72]
[1765102584895,9.81226354,132.07,132.04,0.72]
[1765102585100,10.52282004,132.06,132.03,8.32]
[1765102585400,10.52282004,132.06,132.03,9.04]
[1765102585710,10.52282004,132.06,132.04,0.72]
[1765102585904,9.81282004,132.06,132.04,0.72]
[1765102586388,31.69995419,132.07,132.04,0.72]
[1765102587612,2.95040942,132.06,132.03,0.72]
[1765102587912,2.24040942,132.06,132.04,0.72]
[1765102589183,2.24040942,132.05,132.03,0.72]
[1765102589505,0.71,132.05,132.02,8.2946099]
[1765102590008,2.24040942,132.05,132.03,0.72]
[1765102590405,0.71,132.04,132.03,0.72]
[1765102590584,2.95040942,132.04,132.01,16.61506321]
[1765102590910,2.95040942,132.04,132.02,0.72]
[1765102591099,2.24040942,132.04,132.02,0.72]
[1765102591788,10.52348285,132.05,132.02,0.72]
[1765102591987,31.77536563,132.07,132.02,0.72]
[1765102592184,25.69577505,132.07,132.02,0.72]
[1765102593003,31.02730968,132.07,132.03,7.57401012]
[1765102593198,10.52235347,132.07,132.04,0.72]
[1765102593511,33.2677191,132.07,132.04,0.72]
[1765102595518,31.02730968,132.07,132.04,0.72]
[1765102595717,2.24040942,132.06,132.04,0.72]
[1765102596636,31.02730968,132.07,132.04,0.72]
[1765102596830,2.24040942,132.06,132.04,0.72]
[1765102599407,22.74536563,132.07,132.04,0.72]
[1765102599607,107.25040942,132.08,132.04,8.29339251]
[1765102599827,2.24040942,132.07,132.04,8.29339251]
[1765102600001,2.24040942,132.07,132.05,0.72]
[1765102600627,0.71,132.06,132.04,7.57339251]
[1765102600834,0.71,132.06,132.04,0.72]
[1765102601128,2.24040942,132.07,132.04,0.72]
[1765102601430,2.95040942,132.07,132.04,0.72]
[1765102601617,2.95040942,132.07,132.04,8.29336736]
[1765102602427,2.95040942,132.07,132.02,21.17600189]
[1765102602428,2.24040942,132.07,132.05,0.72]
[1765102602830,2.95040942,132.07,132.04,0.72]
[1765102603017,2.24040942,132.07,132.04,0.72]
[1765102603224,106.54040942,132.08,132.04,0.72]
[1765102604214,106.54040942,132.08,132.05,7.57288905]
[1765102604734,107.25040942,132.08,132.05,8.29288905]
[1765102605228,107.25040942,132.08,132.05,7.57288905]
[1765102605435,107.25040942,132.08,132.06,0.72]
[1765102605619,107.25040942,132.08,132.05,8.29288905]
[1765102606736,114.82160282,132.08,132.05,0.72]
[1765102607430,2.95040942,132.07,132.05,0.72]
[1765102607633,2.24040942,132.07,132.05,0.72]
[1765102608539,2.95040942,132.07,132.05,0.72]
[1765102608727,10.52229609,132.07,132.04,0.72]
[1765102608921,10.52229609,132.07,132.02,9.81501932]
[1765102609123,10.52229609,132.07,132.05,0.72]
[1765102609428,9.81229609,132.07,132.05,0.72]
[1765102610047,7.57188667,132.07,132.05,0.72]
[1765102612532,114.82179525,132.08,132.05,0.72]
[1765102616425,107.25040942,132.08,132.05,8.29264696]
[1765102616744,16.308864,132.09,132.05,8.29264696]
[1765102616922,16.308864,132.09,132.06,0.72]
[1765102619350,16.308864,132.09,132.06,8.29179113]
[1765102619552,16.308864,132.09,132.07,0.72]
[1765102620460,18.54927342,132.09,132.07,0.72]
[1765102620868,2.95040942,132.08,132.04,9.04]
[1765102621066,2.24040942,132.06,132.04,0.72]
[1765102621923,2.24040942,132.07,132.04,8.29338426]
[1765102622127,2.24040942,132.07,132.05,0.72]
[1765102624070,8.2814301,132.08,132.05,0.72]
[1765102624273,2.24040942,132.07,132.05,0.72]
[1765102624655,10.56040942,132.09,132.05,8.29234565]
[1765102624949,10.56040942,132.09,132.06,0.72]
[1765102625147,131.12975967,132.1,132.06,0.72]
[1765102625666,0.71,132.09,132.06,0.72]
[1765102626267,0.71,132.09,132.06,8.29219464]
[1765102627268,0.71,132.09,132.07,0.72]
[1765102630381,3.50396249,132.09,132.07,8.29170557]
[1765102630677,115.37444874,132.1,132.07,8.29170557]
[1765102630881,116.08444874,132.1,132.07,8.29170557]
[1765102632874,112.58048625,132.1,132.07,8.29170557]
[1765102633176,116.08444874,132.1,132.07,8.29170557]
[1765102633469,116.08444874,132.1,132.07,7.57170557]
[1765102633768,108.51396249,132.1,132.08,0.72]
[1765102633977,108.51396249,132.1,132.06,8.29231561]
[1765102634148,108.51396249,132.1,132.07,0.72]
[1765102634676,108.51396249,132.1,132.07,8.29164122]
[1765102635278,108.51396249,132.1,132.08,0.72]
[1765102639061,108.51396249,132.1,132.07,8.29164122]
[1765102642487,105.01,132.1,132.07,8.29164122]
[1765102642670,108.51396249,132.1,132.08,0.66]
[1765102643092,108.51396249,132.1,132.06,7.57231561]
[1765102643280,105.01,132.1,132.06,8.23231561]
[1765102643476,108.51396249,132.1,132.07,0.66]
[1765102644270,107.80396249,132.1,132.07,0.66]
[1765102644979,108.52396249,132.1,132.07,0.66]
[1765102645283,107.80396249,132.1,132.07,8.23161643]
[1765102645492,0.72,132.09,132.07,8.23161643]
[1765102645677,108.52396249,132.1,132.07,8.23161643]
[1765102646692,108.52396249,132.1,132.08,0.66]
[1765102646991,108.52396249,132.1,132.07,7.57161643]
[1765102647176,108.52396249,132.1,132.07,8.23161643]
[1765102647976,108.52396249,132.1,132.08,0.66]
[1765102648177,108.52396249,132.1,132.06,8.23231561]
[1765102648491,108.52396249,132.1,132.07,0.66]
[1765102648688,105.02,132.1,132.07,0.66]
[1765102648872,108.52396249,132.1,132.07,0.66]
[1765102649203,4.22396249,132.09,132.06,8.23231561]
[1765102649690,4.22396249,132.09,132.07,0.66]
[1765102650190,4.22396249,132.09,132.06,7.57231561]
[1765102650391,4.22396249,132.09,132.06,8.23231561]
[1765102651990,4.22396249,132.09,132.05,7.57288905]
[1765102652170,4.22396249,132.09,132.06,0.66]
[1765102653600,4.22396249,132.09,132.06,8.23196213]
[1765102654097,4.22396249,132.09,132.07,0.66]
[1765102658405,3.50396249,132.09,132.07,0.66]
[1765102658902,4.22396249,132.09,132.07,0.66]
[1765102662195,0.72,132.09,132.07,0.66]
[1765102668311,116.09416149,132.1,132.07,0.66]
[1765102671016,0.7,132.09,132.07,0.66]
[1765102673708,0.7,132.09,132.05,7.57288905]
[1765102673915,0.7,132.09,132.06,0.66]
[1765102676014,0.7,132.09,132.06,8.23223911]
[1765102676391,11.77478717,132.09,132.05,8.23268963]
[1765102676798,11.77478717,132.09,132.06,0.66]
[1765102680613,3.50396249,132.12,132.07,3.50396249]
[1765102680809,11.0724408,132.13,132.08,3.50396249]
[1765102681208,11.7224408,132.13,132.09,0.71]
[1765102681522,8.21847831,132.13,132.09,0.71]
[1765102682639,8.21847831,132.13,132.09,8.28009618]
[1765102683736,8.21847831,132.13,132.1,0.71]
[1765102684733,8.21847831,132.13,132.1,8.27997365]
[1765102685929,8.21847831,132.13,132.11,0.71]
[1765102687532,8.21847831,132.13,132.1,0.71]
[1765102687832,11.7224408,132.13,132.1,0.71]
[1765102688725,4.15396249,132.12,132.09,8.2805958]
[1765102689122,3.50396249,132.12,132.1,0.71]
[1765102689434,4.15396249,132.13,132.1,8.28000902]
[1765102692111,0.65,132.13,132.1,7.57000902]
[1765102692307,2.89122716,132.13,132.11,0.71]
[1765102693935,2.24122716,132.13,132.11,0.71]
[1765102694455,2.89122716,132.13,132.11,0.71]
[1765102694742,23.87685034,132.14,132.11,8.27944417]
[1765102694743,18.55009116,132.14,132.11,8.27944417]
[1765102695041,19.20009116,132.14,132.11,8.27944417]
[1765102696947,18.55009116,132.14,132.11,8.27944417]
[1765102697148,0.65,132.13,132.11,8.27944417]
[1765102698051,2.24122716,132.14,132.11,8.27944417]
[1765102698243,2.89122716,132.14,132.11,8.27944417]
[1765102699227,2.89122716,132.14,132.12,0.71]
[1765102699735,2.89122716,132.14,132.11,0.71]
[1765102702260,2.89122716,132.14,132.11,8.27926432]
[1765102702849,2.89122716,132.14,132.11,8.23926432]
[1765102703026,2.89122716,132.14,132.12,0.67]
[1765102703453,2.24122716,132.14,132.12,0.67]
[1765102703754,114.86122716,132.15,132.12,0.67]
[1765102704249,115.51122716,132.15,132.12,8.2386937]
[1765102704437,114.86122716,132.15,132.12,8.2386937]
[1765102704643,115.51122716,132.15,132.13,0.67]
[1765102704870,114.86122716,132.15,132.13,0.67]
[1765102705563,112.62,132.15,132.13,0.67]
[1765102705763,104.3,132.15,132.13,0.67]
[1765102706164,11.21122716,132.16,132.13,0.67]
[1765102706374,16.5386937,132.16,132.13,8.23809353]
[1765102706541,8.97,132.16,132.13,8.23809353]
[1765102706850,8.32,132.16,132.14,0.67]
[1765102708171,7.56809353,132.17,132.14,8.23766832]
[1765102708661,26.86566835,132.18,132.15,0.67]
[1765102708972,16.408864,132.18,132.15,0.67]
[1765102709144,18.65009116,132.18,132.15,0.67]
[1765102710174,18.65009116,132.18,132.15,8.23684432]
[1765102710372,19.30009116,132.18,132.15,8.23684432]
[1765102710561,19.30009116,132.18,132.16,0.67]
[1765102711041,19.30009116,132.18,132.13,29.46109458]
[1765102711042,19.30009116,132.18,132.14,7.56773119]
[1765102711370,19.30009116,132.18,132.15,0.67]
[1765102712146,16.408864,132.18,132.15,8.23694404]
[1765102712461,0.1,132.18,132.16,0.67]
[1765102714191,0.1,132.18,132.16,8.23639565]
[1765102714650,0.1,132.18,132.17,0.67]
[1765102718486,2.99122716,132.18,132.13,21.15989918]
[1765102718784,2.24122716,132.16,132.13,7.5681298]
[1765102718985,2.24122716,132.15,132.13,7.5681298]
[1765102719575,0.65,132.15,132.13,8.2381298]
[1765102721083,0.65,132.15,132.12,27.16042476]
[1765102721278,0.65,132.15,132.13,0.67]
[1765102722194,9.80935696,132.16,132.13,8.2378513]
[1765102722695,10.54122716,132.17,132.14,0.67]
[1765102723007,26.40729671,132.17,132.14,0.67]
[1765102723710,2.99122716,132.18,132.14,0.67]
[1765102724004,25.71591753,132.18,132.14,0.67]
[1765102724205,25.71591753,132.18,132.15,7.56715853]
[1765102724382,25.71591753,132.18,132.15,8.23715853]
[1765102724580,2.99122716,132.18,132.15,8.23715853]
[1765102724779,18.92075985,132.17,132.15,8.23715853]
[1765102725208,2.99122716,132.18,132.15,8.23715853]
[1765102725506,19.02075985,132.18,132.16,0.67]
[1765102726406,19.67075985,132.18,132.16,0.67]
[1765102726582,2.99122716,132.18,132.16,0.67]
[1765102726786,8.32,132.17,132.16,0.67]
[1765102727198,0.75,132.18,132.16,0.67]
[1765102727587,9.07,132.18,132.16,0.67]
[1765102729106,2.99122716,132.18,132.16,0.67]
[1765102729408,8.32,132.17,132.16,0.67]